Workbook

Sheet Simulation retraite
A2: Plan Epargne+
A4: Données de base (remplir uniquement les cases grisées)
A5: Informations personnelles au | B5: 2022-01-01 | C5: =IF(OR(DAY(B5)<>1,MONTH(B5)<>1),"**","") -> 
A6: Date de naissance | B6: 1985-07-01
A7: Collectif | B7: Base
A8: Traitement cotisant | B8: 75000
A10: ="Date de retraite ("&IF(B7="Base",64,61)&" ans)" -> Date de retraite (64 ans) | B10: =EDATE(EOMONTH($B$6,0)+1,12*IF($B$7="PPP",61,64)) -> 2049-08-01 | C10: =IF(B7="Base",64,61)&" ans" -> 64 ans
A12: Comparaison des cotisations et prestations | G12: Taux de conversion | H12: =IF(B7="PPP",4.97%,5.41%) -> 0.0541
B14: =IF($B$7="Base","Base","PPP") -> Base | C14: =IF($B$7="Base","Base Epargne+","PPP Epargne+") -> Base Epargne+ | D14: Différence | G14: Date début | H14: 2023-01-01 | I14: début 01.01.2022 mais intérêt 0.25% en 2022
A15: Cotisations de l'assuré | G15: Date retraite | H15: =EDATE(EOMONTH($B$6,0)+1,12*IF($B$7="PPP",61,64)) -> 2049-08-01
A16: Montant de la cotisation annuelle | B16: =B17*12 -> 7012.8 | C16: =C17*12 -> 7762.8 | D16: =C16-B16 -> 750 | E16: =CEILING(B8*1%/12,0.05)*12-D16 -> -1.818989404e-12 | G16: cot annuelle sup | H16: =CEILING(B8*1%/12,0.05)*12 -> 750
A17: Montant de la cotisation mensuelle | B17: =CEILING(IF(YEAR($B$5)<2023,IF($B$7="Base",VLOOKUP(YEAR($B$5)-YEAR($B$6),Para_simu!$P$1:$X$55,2,FALSE),VLOOKUP(YEAR($B$5)-YEAR($B$6),Para_simu!$P$1:$X$55,3,FALSE)),IF($B$7="Base",VLOOKUP(YEAR($B$5)-YEAR($B$6),Para_simu!$P$1:$X$55,4,FALSE),VLOOKUP(YEAR($B$5)-YEAR($B$6),Para_simu!$P$1:$X$55,5,FALSE)))*$B$8/12,0.05) -> 584.4 | C17: =CEILING(IF(YEAR($B$5)<2023,IF($B$7="Base",VLOOKUP(YEAR($B$5)-YEAR($B$6),Para_simu!$P$1:$X$55,6,FALSE),VLOOKUP(YEAR($B$5)-YEAR($B$6),Para_simu!$P$1:$X$55,7,FALSE)),IF($B$7="Base",VLOOKUP(YEAR($B$5)-YEAR($B$6),Para_simu!$P$1:$X$55,8,FALSE),VLOOKUP(YEAR($B$5)-YEAR($B$6),Para_simu!$P$1:$X$55,9,FALSE)))*$B$8/12,0.05) -> 646.9 | D17: =C17-B17 -> 62.5 | E17: =CEILING(B8*1%/12,0.05)-D17 -> -1.136868377e-13 | G17: 1ère année cot | H17: =$H$16*(1+$F$26)*(1+$F$27)^H18 -> 1201.358373 | I17: car intérêt 0.25% en 2022
G18: nb année | H18: =(YEARFRAC(H14,H15)) -> 26.58333333
A19: Total des cotisations supplémentaires jusqu'à la retraite | D19: =YEARFRAC($B$5,$B$10)*D16 -> 20687.5 | H19: =(((1+F27)^INT($H$18))-1)/(F27/(1+F27)) -> 33.14042238
H20: =H19/((1+$F$27)^(INT(H18)+1-H18)) -> 32.9017273
A21: Prestations | H21: =H17+H20*H16+(H18-INT(H18))*H16 -> 26315.15385
A22: Avoir de vieillesse supplémentaire à la retraite | D22: =MAX('Détails projection'!$H:$H) -> 26304.85 | E22: Taux d'intérêt
E23: 2019 | F23: 0.0225
A24: Amélioration des prestations annuelles | E24: 2020 | F24: 0.025
A25: ="Rente de retraite à "&$C$10 -> Rente de retraite à 64 ans | D25: =CEILING(MAX('Détails projection'!$H:$H)*$H$12/12,0.05)*12 -> 1423.2 | E25: 2021 | F25: 0.05
A26: Rente d'invalidité | D26: =CEILING(MAX('Détails projection'!$H:$H)*$H$12/12,0.05)*12 -> 1423.2 | E26: 2022 | F26: 0.01
A27: Rente de conjoint survivant | D27: =CEILING($D$26*60%/12,0.05)*12 -> 854.4 | E27: proj. Retraite | F27: 0.0175
A28: Rente d'enfant | D28: =CEILING($D$26*20%/12,0.05)*12 -> 285 | E28: proj. Invalidité | F28: 0.0175
A30: * Les calculs tiennent compte d'un taux d'intérêt de 1% en 2022 et d'une hypothèse d'intérêt de 1.75% pour les années suivantes.
A31: =IF(C5="**","** En raison des intérêts, le montant de la rente peut varier de quelques francs si les données renseignées ne sont pas au 01.01.","") -> 
A32: Les informations contenues sur ce document ne sont fournies qu'à titre indicatif. L'exhaustivité des montants n'est garantie que sur les documents émis par la Caisse.

Sheet Détails projection (hidden)
A1: Détails avoir vieillesse | D1: ='Simulation retraite'!$F$27 -> 0.0175 | G1: 0.01 | J1: Détails avoir vieillesse (pour RI) | N1: ='Simulation retraite'!$F$28 -> 0.0175 | P1: 0.01
A2: Date | B2: Age LPP | C2: Nb jours | D2: Intérêts | E2: Taux de bonif | F2: Montant bonif | G2: Avoir vieillesse sans intérêt | H2: Avoir vieillesse | J2: Date | K2: Age LPP | L2: Nb jours | M2: Intérêts | N2: Taux de bonif | O2: Montant bonif | P2: Avoir vieillesse sans intérêt | Q2: Avoir vieillesse
A4: ='Simulation retraite'!$B$5 -> 2022-01-01 | J4: ='Simulation retraite'!$B$5 -> 2022-01-01 | P4: ='Simulation retraite'!#REF! ->  | Q4: ='Simulation retraite'!#REF! -> 
A5: =IF(A4="","",IF(YEAR('Simulation retraite'!$H$15)=YEAR(A4),'Simulation retraite'!$H$15,IF(YEAR('Simulation retraite'!$H$15)-1<YEAR(A4),"",EOMONTH(A4,(12-MONTH(A4)))))) -> 2022-12-31 | B5: =IF(A5="","",YEAR(A5)-YEAR('Simulation retraite'!$B$6)) -> 37 | C5: =IF(AND(DAY(A5)=1,YEAR(A5)<>YEAR('Simulation retraite'!$H$15)),DAYS360(A4,A5)-1,DAYS360(A4,A5)) -> 360 | D5: =IF(A5="","",IF(YEAR(A5)=2019,CEILING('Simulation retraite'!$F$23*H4*C5/360,0.05),IF(YEAR(A5)=2020,CEILING(H4*'Simulation retraite'!$F$24*C5/360,0.05),IF(YEAR(A5)=2021,CEILING(H4*'Simulation retraite'!$F$25*C5/360,0.05),IF(YEAR(A5)=2022,CEILING(H4*'Simulation retraite'!$F$26*C5/360,0.05),CEILING(H4*'Simulation retraite'!$F$27*C5/360,0.05)))))) -> 0 | E5: =IF(A5="","",1%) -> 0.01 | F5: =CEILING(E5*'Simulation retraite'!$B$8/12,0.05)*12*(C5/360) -> 750 | G5: =IF(A5="","",CEILING(G4+F5,0.05)) -> 750 | H5: =IF(A5="","",CEILING(H4+D5+F5,0.05)) -> 750 | J5: =IF(J4="","",IF(YEAR('Simulation retraite'!$H$15)=YEAR(J4),'Simulation retraite'!$H$15,IF(YEAR('Simulation retraite'!$H$15)-1<YEAR(J4),"",EOMONTH(J4,(12-MONTH(J4)))))) -> 2022-12-31 | K5: =IF(J5="","",YEAR(J5)-YEAR('Simulation retraite'!$B$6)) -> 37 | L5: =IF(AND(DAY(J5)=1,YEAR(J5)<>YEAR('Simulation retraite'!$H$15)),DAYS360(J4,J5)-1,DAYS360(J4,J5)) -> 360 | M5: =IF(J5="","",IF(YEAR(J5)=2019,CEILING('Simulation retraite'!$F$23*Q4*L5/360,0.05),IF(YEAR(J5)=2020,CEILING(Q4*'Simulation retraite'!$F$24*L5/360,0.05),IF(YEAR(J5)=2021,CEILING(Q4*'Simulation retraite'!$F$25*L5/360,0.05),IF(YEAR(J5)=2022,CEILING(Q4*'Simulation retraite'!$F$26*L5/360,0.05),(CEILING(Q4*'Simulation retraite'!$F$28*L5/360,0.05))))))) ->  | N5: =IF(J5="","",1%) -> 0.01 | O5: =CEILING(N5*'Simulation retraite'!$B$8/12,0.05)*12*(L5/360) -> 750 | P5: =IF(J5="","",CEILING(P4+O5,0.05)) ->  | Q5: =IF(J5="","",CEILING(Q4+M5+O5,0.05)) -> 
A6: =IF(A5="","",IF(YEAR('Simulation retraite'!$H$15)-1=YEAR(A5),'Simulation retraite'!$H$15,IF(YEAR('Simulation retraite'!$H$15)-1<YEAR(A5),"",(EDATE(A5,12))))) -> 2023-12-31 | B6: =IF(A6="","",YEAR(A6)-YEAR('Simulation retraite'!$B$6)) -> 38 | C6: =IF(A6="","",IF(DAY(A6)=1,DAYS360(A5,A6)-1,DAYS360(A5,A6))) -> 360 | D6: =IF(A6="","",IF(YEAR(A6)=2020,CEILING(H5*'Simulation retraite'!$F$24*C6/360,0.05),IF(YEAR(A6)=2021,CEILING(H5*'Simulation retraite'!$F$25*C6/360,0.05),IF(YEAR(A6)=2022,CEILING(H5*'Simulation retraite'!$F$25*C6/360,0.05),CEILING(H5*'Simulation retraite'!$F$27*C6/360,0.05))))) -> 13.15 | E6: =IF(A6="","",1%) -> 0.01 | F6: =IF(A6="","",CEILING(E6*'Simulation retraite'!$B$8/12,0.05)*12*(C6/360)) -> 750 | G6: 1500 | H6: =IF(A6="","",CEILING(H5+D6+F6,0.05)) -> 1513.15 | J6: =IF(J5="","",IF(YEAR('Simulation retraite'!$H$15)-1=YEAR(J5),'Simulation retraite'!$H$15,IF(YEAR('Simulation retraite'!$H$15)-1<YEAR(J5),"",(EDATE(J5,12))))) -> 2023-12-31 | K6: =IF(J6="","",YEAR(J6)-YEAR('Simulation retraite'!$B$6)) -> 38 | L6: =IF(J6="","",IF(DAY(J6)=1,DAYS360(J5,J6)-1,DAYS360(J5,J6))) -> 360 | M6: =IF(J6="","",CEILING(Q5*'Simulation retraite'!$F$28*L6/360,0.05)) ->  | N6: =IF(J6="","",1%) -> 0.01 | O6: =IF(J6="","",CEILING(N6*'Simulation retraite'!$B$8/12,0.05)*12*(L6/360)) -> 750
A7: =IF(A6="","",IF(YEAR('Simulation retraite'!$H$15)-1=YEAR(A6),'Simulation retraite'!$H$15,IF(YEAR('Simulation retraite'!$H$15)-1<YEAR(A6),"",(EDATE(A6,12))))) -> 2024-12-31 | B7: =IF(A7="","",YEAR(A7)-YEAR('Simulation retraite'!$B$6)) -> 39 | C7: 360 | D7: =IF(A7="","",IF(YEAR(A7)=2021,CEILING(H6*'Simulation retraite'!$F$25*C7/360,0.05),IF(YEAR(A7)=2022,CEILING(H6*'Simulation retraite'!$F$26*C7/360,0.05),CEILING(H6*'Simulation retraite'!$F$27*C7/360,0.05)))) -> 26.5 | E7: 0.01 | F7: =IF(A7="","",CEILING(E7*'Simulation retraite'!$B$8/12,0.05)*12*(C7/360)) -> 750 | G7: 2250 | H7: 2289.65 | J7: =IF(J6="","",IF(YEAR('Simulation retraite'!$H$15)-1=YEAR(J6),'Simulation retraite'!$H$15,IF(YEAR('Simulation retraite'!$H$15)-1<YEAR(J6),"",(EDATE(J6,12))))) -> 2024-12-31 | K7: =IF(J7="","",YEAR(J7)-YEAR('Simulation retraite'!$B$6)) -> 39 | L7: 360 | M7: =IF(J7="","",CEILING(Q6*'Simulation retraite'!$F$28*L7/360,0.05)) ->  | N7: 0.01 | O7: =IF(J7="","",CEILING(N7*'Simulation retraite'!$B$8/12,0.05)*12*(L7/360)) -> 750
A8: =IF(A7="","",IF(YEAR('Simulation retraite'!$H$15)-1=YEAR(A7),'Simulation retraite'!$H$15,IF(YEAR('Simulation retraite'!$H$15)-1<YEAR(A7),"",(EDATE(A7,12))))) -> 2025-12-31 | B8: =IF(A8="","",YEAR(A8)-YEAR('Simulation retraite'!$B$6)) -> 40 | C8: 360 | D8: =IF(A8="","",CEILING(H7*'Simulation retraite'!$F$27*C8/360,0.05)) -> 40.1 | E8: 0.01 | F8: =IF(A8="","",CEILING(E8*'Simulation retraite'!$B$8/12,0.05)*12*(C8/360)) -> 750 | G8: 3000 | H8: 3079.75 | J8: =IF(J7="","",IF(YEAR('Simulation retraite'!$H$15)-1=YEAR(J7),'Simulation retraite'!$H$15,IF(YEAR('Simulation retraite'!$H$15)-1<YEAR(J7),"",(EDATE(J7,12))))) -> 2025-12-31 | K8: =IF(J8="","",YEAR(J8)-YEAR('Simulation retraite'!$B$6)) -> 40 | L8: 360 | M8: =IF(J8="","",CEILING(Q7*'Simulation retraite'!$F$28*L8/360,0.05)) ->  | N8: 0.01 | O8: =IF(J8="","",CEILING(N8*'Simulation retraite'!$B$8/12,0.05)*12*(L8/360)) -> 750
A9: =IF(A8="","",IF(YEAR('Simulation retraite'!$H$15)-1=YEAR(A8),'Simulation retraite'!$H$15,IF(YEAR('Simulation retraite'!$H$15)-1<YEAR(A8),"",(EDATE(A8,12))))) -> 2026-12-31 | B9: =IF(A9="","",YEAR(A9)-YEAR('Simulation retraite'!$B$6)) -> 41 | C9: 360 | D9: =IF(A9="","",CEILING(H8*'Simulation retraite'!$F$27*C9/360,0.05)) -> 53.9 | E9: 0.01 | F9: =IF(A9="","",CEILING(E9*'Simulation retraite'!$B$8/12,0.05)*12*(C9/360)) -> 750 | G9: 3750 | H9: 3883.65 | J9: =IF(J8="","",IF(YEAR('Simulation retraite'!$H$15)-1=YEAR(J8),'Simulation retraite'!$H$15,IF(YEAR('Simulation retraite'!$H$15)-1<YEAR(J8),"",(EDATE(J8,12))))) -> 2026-12-31 | K9: =IF(J9="","",YEAR(J9)-YEAR('Simulation retraite'!$B$6)) -> 41 | L9: 360 | M9: =IF(J9="","",CEILING(Q8*'Simulation retraite'!$F$28*L9/360,0.05)) ->  | N9: 0.01 | O9: =IF(J9="","",CEILING(N9*'Simulation retraite'!$B$8/12,0.05)*12*(L9/360)) -> 750
A10: =IF(A9="","",IF(YEAR('Simulation retraite'!$H$15)-1=YEAR(A9),'Simulation retraite'!$H$15,IF(YEAR('Simulation retraite'!$H$15)-1<YEAR(A9),"",(EDATE(A9,12))))) -> 2027-12-31 | B10: =IF(A10="","",YEAR(A10)-YEAR('Simulation retraite'!$B$6)) -> 42 | C10: 360 | D10: =IF(A10="","",CEILING(H9*'Simulation retraite'!$F$27*C10/360,0.05)) -> 68 | E10: 0.01 | F10: =IF(A10="","",CEILING(E10*'Simulation retraite'!$B$8/12,0.05)*12*(C10/360)) -> 750 | G10: 4500 | H10: 4701.65 | J10: =IF(J9="","",IF(YEAR('Simulation retraite'!$H$15)-1=YEAR(J9),'Simulation retraite'!$H$15,IF(YEAR('Simulation retraite'!$H$15)-1<YEAR(J9),"",(EDATE(J9,12))))) -> 2027-12-31 | K10: =IF(J10="","",YEAR(J10)-YEAR('Simulation retraite'!$B$6)) -> 42 | L10: 360 | M10: =IF(J10="","",CEILING(Q9*'Simulation retraite'!$F$28*L10/360,0.05)) ->  | N10: 0.01 | O10: =IF(J10="","",CEILING(N10*'Simulation retraite'!$B$8/12,0.05)*12*(L10/360)) -> 750
A11: =IF(A10="","",IF(YEAR('Simulation retraite'!$H$15)-1=YEAR(A10),'Simulation retraite'!$H$15,IF(YEAR('Simulation retraite'!$H$15)-1<YEAR(A10),"",(EDATE(A10,12))))) -> 2028-12-31 | B11: =IF(A11="","",YEAR(A11)-YEAR('Simulation retraite'!$B$6)) -> 43 | C11: 360 | D11: =IF(A11="","",CEILING(H10*'Simulation retraite'!$F$27*C11/360,0.05)) -> 82.3 | E11: 0.01 | F11: =IF(A11="","",CEILING(E11*'Simulation retraite'!$B$8/12,0.05)*12*(C11/360)) -> 750 | G11: 5250 | H11: 5533.95 | J11: =IF(J10="","",IF(YEAR('Simulation retraite'!$H$15)-1=YEAR(J10),'Simulation retraite'!$H$15,IF(YEAR('Simulation retraite'!$H$15)-1<YEAR(J10),"",(EDATE(J10,12))))) -> 2028-12-31 | K11: =IF(J11="","",YEAR(J11)-YEAR('Simulation retraite'!$B$6)) -> 43 | L11: 360 | M11: =IF(J11="","",CEILING(Q10*'Simulation retraite'!$F$28*L11/360,0.05)) ->  | N11: 0.01 | O11: =IF(J11="","",CEILING(N11*'Simulation retraite'!$B$8/12,0.05)*12*(L11/360)) -> 750
A12: =IF(A11="","",IF(YEAR('Simulation retraite'!$H$15)-1=YEAR(A11),'Simulation retraite'!$H$15,IF(YEAR('Simulation retraite'!$H$15)-1<YEAR(A11),"",(EDATE(A11,12))))) -> 2029-12-31 | B12: =IF(A12="","",YEAR(A12)-YEAR('Simulation retraite'!$B$6)) -> 44 | C12: 360 | D12: =IF(A12="","",CEILING(H11*'Simulation retraite'!$F$27*C12/360,0.05)) -> 96.85 | E12: 0.01 | F12: =IF(A12="","",CEILING(E12*'Simulation retraite'!$B$8/12,0.05)*12*(C12/360)) -> 750 | G12: 6000 | H12: 6380.8 | J12: =IF(J11="","",IF(YEAR('Simulation retraite'!$H$15)-1=YEAR(J11),'Simulation retraite'!$H$15,IF(YEAR('Simulation retraite'!$H$15)-1<YEAR(J11),"",(EDATE(J11,12))))) -> 2029-12-31 | K12: =IF(J12="","",YEAR(J12)-YEAR('Simulation retraite'!$B$6)) -> 44 | L12: 360 | M12: =IF(J12="","",CEILING(Q11*'Simulation retraite'!$F$28*L12/360,0.05)) ->  | N12: 0.01 | O12: =IF(J12="","",CEILING(N12*'Simulation retraite'!$B$8/12,0.05)*12*(L12/360)) -> 750
A13: =IF(A12="","",IF(YEAR('Simulation retraite'!$H$15)-1=YEAR(A12),'Simulation retraite'!$H$15,IF(YEAR('Simulation retraite'!$H$15)-1<YEAR(A12),"",(EDATE(A12,12))))) -> 2030-12-31 | B13: =IF(A13="","",YEAR(A13)-YEAR('Simulation retraite'!$B$6)) -> 45 | C13: 360 | D13: =IF(A13="","",CEILING(H12*'Simulation retraite'!$F$27*C13/360,0.05)) -> 111.7 | E13: 0.01 | F13: =IF(A13="","",CEILING(E13*'Simulation retraite'!$B$8/12,0.05)*12*(C13/360)) -> 750 | G13: 6750 | H13: 7242.5 | J13: =IF(J12="","",IF(YEAR('Simulation retraite'!$H$15)-1=YEAR(J12),'Simulation retraite'!$H$15,IF(YEAR('Simulation retraite'!$H$15)-1<YEAR(J12),"",(EDATE(J12,12))))) -> 2030-12-31 | K13: =IF(J13="","",YEAR(J13)-YEAR('Simulation retraite'!$B$6)) -> 45 | L13: 360 | M13: =IF(J13="","",CEILING(Q12*'Simulation retraite'!$F$28*L13/360,0.05)) ->  | N13: 0.01 | O13: =IF(J13="","",CEILING(N13*'Simulation retraite'!$B$8/12,0.05)*12*(L13/360)) -> 750
A14: =IF(A13="","",IF(YEAR('Simulation retraite'!$H$15)-1=YEAR(A13),'Simulation retraite'!$H$15,IF(YEAR('Simulation retraite'!$H$15)-1<YEAR(A13),"",(EDATE(A13,12))))) -> 2031-12-31 | B14: =IF(A14="","",YEAR(A14)-YEAR('Simulation retraite'!$B$6)) -> 46 | C14: 360 | D14: =IF(A14="","",CEILING(H13*'Simulation retraite'!$F$27*C14/360,0.05)) -> 126.75 | E14: 0.01 | F14: =IF(A14="","",CEILING(E14*'Simulation retraite'!$B$8/12,0.05)*12*(C14/360)) -> 750 | G14: 7500 | H14: 8119.25 | J14: =IF(J13="","",IF(YEAR('Simulation retraite'!$H$15)-1=YEAR(J13),'Simulation retraite'!$H$15,IF(YEAR('Simulation retraite'!$H$15)-1<YEAR(J13),"",(EDATE(J13,12))))) -> 2031-12-31 | K14: =IF(J14="","",YEAR(J14)-YEAR('Simulation retraite'!$B$6)) -> 46 | L14: 360 | M14: =IF(J14="","",CEILING(Q13*'Simulation retraite'!$F$28*L14/360,0.05)) ->  | N14: 0.01 | O14: =IF(J14="","",CEILING(N14*'Simulation retraite'!$B$8/12,0.05)*12*(L14/360)) -> 750
A15: =IF(A14="","",IF(YEAR('Simulation retraite'!$H$15)-1=YEAR(A14),'Simulation retraite'!$H$15,IF(YEAR('Simulation retraite'!$H$15)-1<YEAR(A14),"",(EDATE(A14,12))))) -> 2032-12-31 | B15: =IF(A15="","",YEAR(A15)-YEAR('Simulation retraite'!$B$6)) -> 47 | C15: 360 | D15: =IF(A15="","",CEILING(H14*'Simulation retraite'!$F$27*C15/360,0.05)) -> 142.1 | E15: 0.01 | F15: =IF(A15="","",CEILING(E15*'Simulation retraite'!$B$8/12,0.05)*12*(C15/360)) -> 750 | G15: 8250 | H15: 9011.35 | J15: =IF(J14="","",IF(YEAR('Simulation retraite'!$H$15)-1=YEAR(J14),'Simulation retraite'!$H$15,IF(YEAR('Simulation retraite'!$H$15)-1<YEAR(J14),"",(EDATE(J14,12))))) -> 2032-12-31 | K15: =IF(J15="","",YEAR(J15)-YEAR('Simulation retraite'!$B$6)) -> 47 | L15: 360 | M15: =IF(J15="","",CEILING(Q14*'Simulation retraite'!$F$28*L15/360,0.05)) ->  | N15: 0.01 | O15: =IF(J15="","",CEILING(N15*'Simulation retraite'!$B$8/12,0.05)*12*(L15/360)) -> 750
A16: =IF(A15="","",IF(YEAR('Simulation retraite'!$H$15)-1=YEAR(A15),'Simulation retraite'!$H$15,IF(YEAR('Simulation retraite'!$H$15)-1<YEAR(A15),"",(EDATE(A15,12))))) -> 2033-12-31 | B16: =IF(A16="","",YEAR(A16)-YEAR('Simulation retraite'!$B$6)) -> 48 | C16: 360 | D16: =IF(A16="","",CEILING(H15*'Simulation retraite'!$F$27*C16/360,0.05)) -> 157.7 | E16: 0.01 | F16: =IF(A16="","",CEILING(E16*'Simulation retraite'!$B$8/12,0.05)*12*(C16/360)) -> 750 | G16: 9000 | H16: 9919.05 | J16: =IF(J15="","",IF(YEAR('Simulation retraite'!$H$15)-1=YEAR(J15),'Simulation retraite'!$H$15,IF(YEAR('Simulation retraite'!$H$15)-1<YEAR(J15),"",(EDATE(J15,12))))) -> 2033-12-31 | K16: =IF(J16="","",YEAR(J16)-YEAR('Simulation retraite'!$B$6)) -> 48 | L16: 360 | M16: =IF(J16="","",CEILING(Q15*'Simulation retraite'!$F$28*L16/360,0.05)) ->  | N16: 0.01 | O16: =IF(J16="","",CEILING(N16*'Simulation retraite'!$B$8/12,0.05)*12*(L16/360)) -> 750
A17: =IF(A16="","",IF(YEAR('Simulation retraite'!$H$15)-1=YEAR(A16),'Simulation retraite'!$H$15,IF(YEAR('Simulation retraite'!$H$15)-1<YEAR(A16),"",(EDATE(A16,12))))) -> 2034-12-31 | B17: =IF(A17="","",YEAR(A17)-YEAR('Simulation retraite'!$B$6)) -> 49 | C17: 360 | D17: =IF(A17="","",CEILING(H16*'Simulation retraite'!$F$27*C17/360,0.05)) -> 173.6 | E17: 0.01 | F17: =IF(A17="","",CEILING(E17*'Simulation retraite'!$B$8/12,0.05)*12*(C17/360)) -> 750 | G17: 9750 | H17: 10842.65 | J17: =IF(J16="","",IF(YEAR('Simulation retraite'!$H$15)-1=YEAR(J16),'Simulation retraite'!$H$15,IF(YEAR('Simulation retraite'!$H$15)-1<YEAR(J16),"",(EDATE(J16,12))))) -> 2034-12-31 | K17: =IF(J17="","",YEAR(J17)-YEAR('Simulation retraite'!$B$6)) -> 49 | L17: 360 | M17: =IF(J17="","",CEILING(Q16*'Simulation retraite'!$F$28*L17/360,0.05)) ->  | N17: 0.01 | O17: =IF(J17="","",CEILING(N17*'Simulation retraite'!$B$8/12,0.05)*12*(L17/360)) -> 750
A18: =IF(A17="","",IF(YEAR('Simulation retraite'!$H$15)-1=YEAR(A17),'Simulation retraite'!$H$15,IF(YEAR('Simulation retraite'!$H$15)-1<YEAR(A17),"",(EDATE(A17,12))))) -> 2035-12-31 | B18: =IF(A18="","",YEAR(A18)-YEAR('Simulation retraite'!$B$6)) -> 50 | C18: 360 | D18: =IF(A18="","",CEILING(H17*'Simulation retraite'!$F$27*C18/360,0.05)) -> 189.75 | E18: 0.01 | F18: =IF(A18="","",CEILING(E18*'Simulation retraite'!$B$8/12,0.05)*12*(C18/360)) -> 750 | G18: 10500 | H18: 11782.4 | J18: =IF(J17="","",IF(YEAR('Simulation retraite'!$H$15)-1=YEAR(J17),'Simulation retraite'!$H$15,IF(YEAR('Simulation retraite'!$H$15)-1<YEAR(J17),"",(EDATE(J17,12))))) -> 2035-12-31 | K18: =IF(J18="","",YEAR(J18)-YEAR('Simulation retraite'!$B$6)) -> 50 | L18: 360 | M18: =IF(J18="","",CEILING(Q17*'Simulation retraite'!$F$28*L18/360,0.05)) ->  | N18: 0.01 | O18: =IF(J18="","",CEILING(N18*'Simulation retraite'!$B$8/12,0.05)*12*(L18/360)) -> 750
A19: =IF(A18="","",IF(YEAR('Simulation retraite'!$H$15)-1=YEAR(A18),'Simulation retraite'!$H$15,IF(YEAR('Simulation retraite'!$H$15)-1<YEAR(A18),"",(EDATE(A18,12))))) -> 2036-12-31 | B19: =IF(A19="","",YEAR(A19)-YEAR('Simulation retraite'!$B$6)) -> 51 | C19: 360 | D19: =IF(A19="","",CEILING(H18*'Simulation retraite'!$F$27*C19/360,0.05)) -> 206.2 | E19: 0.01 | F19: =IF(A19="","",CEILING(E19*'Simulation retraite'!$B$8/12,0.05)*12*(C19/360)) -> 750 | G19: 11250 | H19: 12738.6 | J19: =IF(J18="","",IF(YEAR('Simulation retraite'!$H$15)-1=YEAR(J18),'Simulation retraite'!$H$15,IF(YEAR('Simulation retraite'!$H$15)-1<YEAR(J18),"",(EDATE(J18,12))))) -> 2036-12-31 | K19: =IF(J19="","",YEAR(J19)-YEAR('Simulation retraite'!$B$6)) -> 51 | L19: 360 | M19: =IF(J19="","",CEILING(Q18*'Simulation retraite'!$F$28*L19/360,0.05)) ->  | N19: 0.01 | O19: =IF(J19="","",CEILING(N19*'Simulation retraite'!$B$8/12,0.05)*12*(L19/360)) -> 750
A20: =IF(A19="","",IF(YEAR('Simulation retraite'!$H$15)-1=YEAR(A19),'Simulation retraite'!$H$15,IF(YEAR('Simulation retraite'!$H$15)-1<YEAR(A19),"",(EDATE(A19,12))))) -> 2037-12-31 | B20: =IF(A20="","",YEAR(A20)-YEAR('Simulation retraite'!$B$6)) -> 52 | C20: 360 | D20: =IF(A20="","",CEILING(H19*'Simulation retraite'!$F$27*C20/360,0.05)) -> 222.95 | E20: 0.01 | F20: =IF(A20="","",CEILING(E20*'Simulation retraite'!$B$8/12,0.05)*12*(C20/360)) -> 750 | G20: 12000 | H20: 13711.55 | J20: =IF(J19="","",IF(YEAR('Simulation retraite'!$H$15)-1=YEAR(J19),'Simulation retraite'!$H$15,IF(YEAR('Simulation retraite'!$H$15)-1<YEAR(J19),"",(EDATE(J19,12))))) -> 2037-12-31 | K20: =IF(J20="","",YEAR(J20)-YEAR('Simulation retraite'!$B$6)) -> 52 | L20: 360 | M20: =IF(J20="","",CEILING(Q19*'Simulation retraite'!$F$28*L20/360,0.05)) ->  | N20: 0.01 | O20: =IF(J20="","",CEILING(N20*'Simulation retraite'!$B$8/12,0.05)*12*(L20/360)) -> 750
A21: =IF(A20="","",IF(YEAR('Simulation retraite'!$H$15)-1=YEAR(A20),'Simulation retraite'!$H$15,IF(YEAR('Simulation retraite'!$H$15)-1<YEAR(A20),"",(EDATE(A20,12))))) -> 2038-12-31 | B21: =IF(A21="","",YEAR(A21)-YEAR('Simulation retraite'!$B$6)) -> 53 | C21: 360 | D21: =IF(A21="","",CEILING(H20*'Simulation retraite'!$F$27*C21/360,0.05)) -> 240 | E21: 0.01 | F21: =IF(A21="","",CEILING(E21*'Simulation retraite'!$B$8/12,0.05)*12*(C21/360)) -> 750 | G21: 12750 | H21: 14701.55 | J21: =IF(J20="","",IF(YEAR('Simulation retraite'!$H$15)-1=YEAR(J20),'Simulation retraite'!$H$15,IF(YEAR('Simulation retraite'!$H$15)-1<YEAR(J20),"",(EDATE(J20,12))))) -> 2038-12-31 | K21: =IF(J21="","",YEAR(J21)-YEAR('Simulation retraite'!$B$6)) -> 53 | L21: 360 | M21: =IF(J21="","",CEILING(Q20*'Simulation retraite'!$F$28*L21/360,0.05)) ->  | N21: 0.01 | O21: =IF(J21="","",CEILING(N21*'Simulation retraite'!$B$8/12,0.05)*12*(L21/360)) -> 750
A22: =IF(A21="","",IF(YEAR('Simulation retraite'!$H$15)-1=YEAR(A21),'Simulation retraite'!$H$15,IF(YEAR('Simulation retraite'!$H$15)-1<YEAR(A21),"",(EDATE(A21,12))))) -> 2039-12-31 | B22: =IF(A22="","",YEAR(A22)-YEAR('Simulation retraite'!$B$6)) -> 54 | C22: 360 | D22: =IF(A22="","",CEILING(H21*'Simulation retraite'!$F$27*C22/360,0.05)) -> 257.3 | E22: 0.01 | F22: =IF(A22="","",CEILING(E22*'Simulation retraite'!$B$8/12,0.05)*12*(C22/360)) -> 750 | G22: 13500 | H22: 15708.85 | J22: =IF(J21="","",IF(YEAR('Simulation retraite'!$H$15)-1=YEAR(J21),'Simulation retraite'!$H$15,IF(YEAR('Simulation retraite'!$H$15)-1<YEAR(J21),"",(EDATE(J21,12))))) -> 2039-12-31 | K22: =IF(J22="","",YEAR(J22)-YEAR('Simulation retraite'!$B$6)) -> 54 | L22: 360 | M22: =IF(J22="","",CEILING(Q21*'Simulation retraite'!$F$28*L22/360,0.05)) ->  | N22: 0.01 | O22: =IF(J22="","",CEILING(N22*'Simulation retraite'!$B$8/12,0.05)*12*(L22/360)) -> 750
A23: =IF(A22="","",IF(YEAR('Simulation retraite'!$H$15)-1=YEAR(A22),'Simulation retraite'!$H$15,IF(YEAR('Simulation retraite'!$H$15)-1<YEAR(A22),"",(EDATE(A22,12))))) -> 2040-12-31 | B23: =IF(A23="","",YEAR(A23)-YEAR('Simulation retraite'!$B$6)) -> 55 | C23: 360 | D23: =IF(A23="","",CEILING(H22*'Simulation retraite'!$F$27*C23/360,0.05)) -> 274.95 | E23: 0.01 | F23: =IF(A23="","",CEILING(E23*'Simulation retraite'!$B$8/12,0.05)*12*(C23/360)) -> 750 | G23: 14250 | H23: 16733.8 | J23: =IF(J22="","",IF(YEAR('Simulation retraite'!$H$15)-1=YEAR(J22),'Simulation retraite'!$H$15,IF(YEAR('Simulation retraite'!$H$15)-1<YEAR(J22),"",(EDATE(J22,12))))) -> 2040-12-31 | K23: =IF(J23="","",YEAR(J23)-YEAR('Simulation retraite'!$B$6)) -> 55 | L23: 360 | M23: =IF(J23="","",CEILING(Q22*'Simulation retraite'!$F$28*L23/360,0.05)) ->  | N23: 0.01 | O23: =IF(J23="","",CEILING(N23*'Simulation retraite'!$B$8/12,0.05)*12*(L23/360)) -> 750
A24: =IF(A23="","",IF(YEAR('Simulation retraite'!$H$15)-1=YEAR(A23),'Simulation retraite'!$H$15,IF(YEAR('Simulation retraite'!$H$15)-1<YEAR(A23),"",(EDATE(A23,12))))) -> 2041-12-31 | B24: =IF(A24="","",YEAR(A24)-YEAR('Simulation retraite'!$B$6)) -> 56 | C24: 360 | D24: =IF(A24="","",CEILING(H23*'Simulation retraite'!$F$27*C24/360,0.05)) -> 292.85 | E24: 0.01 | F24: =IF(A24="","",CEILING(E24*'Simulation retraite'!$B$8/12,0.05)*12*(C24/360)) -> 750 | G24: 15000 | H24: 17776.65 | J24: =IF(J23="","",IF(YEAR('Simulation retraite'!$H$15)-1=YEAR(J23),'Simulation retraite'!$H$15,IF(YEAR('Simulation retraite'!$H$15)-1<YEAR(J23),"",(EDATE(J23,12))))) -> 2041-12-31 | K24: =IF(J24="","",YEAR(J24)-YEAR('Simulation retraite'!$B$6)) -> 56 | L24: 360 | M24: =IF(J24="","",CEILING(Q23*'Simulation retraite'!$F$28*L24/360,0.05)) ->  | N24: 0.01 | O24: =IF(J24="","",CEILING(N24*'Simulation retraite'!$B$8/12,0.05)*12*(L24/360)) -> 750
A25: =IF(A24="","",IF(YEAR('Simulation retraite'!$H$15)-1=YEAR(A24),'Simulation retraite'!$H$15,IF(YEAR('Simulation retraite'!$H$15)-1<YEAR(A24),"",(EDATE(A24,12))))) -> 2042-12-31 | B25: =IF(A25="","",YEAR(A25)-YEAR('Simulation retraite'!$B$6)) -> 57 | C25: 360 | D25: =IF(A25="","",CEILING(H24*'Simulation retraite'!$F$27*C25/360,0.05)) -> 311.1 | E25: 0.01 | F25: =IF(A25="","",CEILING(E25*'Simulation retraite'!$B$8/12,0.05)*12*(C25/360)) -> 750 | G25: 15750 | H25: 18837.75 | J25: =IF(J24="","",IF(YEAR('Simulation retraite'!$H$15)-1=YEAR(J24),'Simulation retraite'!$H$15,IF(YEAR('Simulation retraite'!$H$15)-1<YEAR(J24),"",(EDATE(J24,12))))) -> 2042-12-31 | K25: =IF(J25="","",YEAR(J25)-YEAR('Simulation retraite'!$B$6)) -> 57 | L25: 360 | M25: =IF(J25="","",CEILING(Q24*'Simulation retraite'!$F$28*L25/360,0.05)) ->  | N25: 0.01 | O25: =IF(J25="","",CEILING(N25*'Simulation retraite'!$B$8/12,0.05)*12*(L25/360)) -> 750
A26: =IF(A25="","",IF(YEAR('Simulation retraite'!$H$15)-1=YEAR(A25),'Simulation retraite'!$H$15,IF(YEAR('Simulation retraite'!$H$15)-1<YEAR(A25),"",(EDATE(A25,12))))) -> 2043-12-31 | B26: =IF(A26="","",YEAR(A26)-YEAR('Simulation retraite'!$B$6)) -> 58 | C26: 360 | D26: =IF(A26="","",CEILING(H25*'Simulation retraite'!$F$27*C26/360,0.05)) -> 329.7 | E26: 0.01 | F26: =IF(A26="","",CEILING(E26*'Simulation retraite'!$B$8/12,0.05)*12*(C26/360)) -> 750 | G26: 16500 | H26: 19917.45 | J26: =IF(J25="","",IF(YEAR('Simulation retraite'!$H$15)-1=YEAR(J25),'Simulation retraite'!$H$15,IF(YEAR('Simulation retraite'!$H$15)-1<YEAR(J25),"",(EDATE(J25,12))))) -> 2043-12-31 | K26: =IF(J26="","",YEAR(J26)-YEAR('Simulation retraite'!$B$6)) -> 58 | L26: 360 | M26: =IF(J26="","",CEILING(Q25*'Simulation retraite'!$F$28*L26/360,0.05)) ->  | N26: 0.01 | O26: =IF(J26="","",CEILING(N26*'Simulation retraite'!$B$8/12,0.05)*12*(L26/360)) -> 750
A27: =IF(A26="","",IF(YEAR('Simulation retraite'!$H$15)-1=YEAR(A26),'Simulation retraite'!$H$15,IF(YEAR('Simulation retraite'!$H$15)-1<YEAR(A26),"",(EDATE(A26,12))))) -> 2044-12-31 | B27: =IF(A27="","",YEAR(A27)-YEAR('Simulation retraite'!$B$6)) -> 59 | C27: 360 | D27: =IF(A27="","",CEILING(H26*'Simulation retraite'!$F$27*C27/360,0.05)) -> 348.6 | E27: 0.01 | F27: =IF(A27="","",CEILING(E27*'Simulation retraite'!$B$8/12,0.05)*12*(C27/360)) -> 750 | G27: 17250 | H27: =IF(A27="","",CEILING(H26+D27+F27,0.05)) -> 21016.05 | J27: =IF(J26="","",IF(YEAR('Simulation retraite'!$H$15)-1=YEAR(J26),'Simulation retraite'!$H$15,IF(YEAR('Simulation retraite'!$H$15)-1<YEAR(J26),"",(EDATE(J26,12))))) -> 2044-12-31 | K27: =IF(J27="","",YEAR(J27)-YEAR('Simulation retraite'!$B$6)) -> 59 | L27: 360 | M27: =IF(J27="","",CEILING(Q26*'Simulation retraite'!$F$28*L27/360,0.05)) ->  | N27: 0.01 | O27: =IF(J27="","",CEILING(N27*'Simulation retraite'!$B$8/12,0.05)*12*(L27/360)) -> 750
A28: =IF(A27="","",IF(YEAR('Simulation retraite'!$H$15)-1=YEAR(A27),'Simulation retraite'!$H$15,IF(YEAR('Simulation retraite'!$H$15)-1<YEAR(A27),"",(EDATE(A27,12))))) -> 2045-12-31 | B28: =IF(A28="","",YEAR(A28)-YEAR('Simulation retraite'!$B$6)) -> 60 | C28: 360 | D28: =IF(A28="","",CEILING(H27*'Simulation retraite'!$F$27*C28/360,0.05)) -> 367.8 | E28: 0.01 | F28: =IF(A28="","",CEILING(E28*'Simulation retraite'!$B$8/12,0.05)*12*(C28/360)) -> 750 | G28: 18000 | H28: 22133.85 | J28: =IF(J27="","",IF(YEAR('Simulation retraite'!$H$15)-1=YEAR(J27),'Simulation retraite'!$H$15,IF(YEAR('Simulation retraite'!$H$15)-1<YEAR(J27),"",(EDATE(J27,12))))) -> 2045-12-31 | K28: =IF(J28="","",YEAR(J28)-YEAR('Simulation retraite'!$B$6)) -> 60 | L28: 360 | M28: =IF(J28="","",CEILING(Q27*'Simulation retraite'!$F$28*L28/360,0.05)) ->  | N28: 0.01 | O28: =IF(J28="","",CEILING(N28*'Simulation retraite'!$B$8/12,0.05)*12*(L28/360)) -> 750
A29: =IF(A28="","",IF(YEAR('Simulation retraite'!$H$15)-1=YEAR(A28),'Simulation retraite'!$H$15,IF(YEAR('Simulation retraite'!$H$15)-1<YEAR(A28),"",(EDATE(A28,12))))) -> 2046-12-31 | B29: =IF(A29="","",YEAR(A29)-YEAR('Simulation retraite'!$B$6)) -> 61 | C29: 360 | D29: =IF(A29="","",CEILING(H28*'Simulation retraite'!$F$27*C29/360,0.05)) -> 387.35 | E29: 0.01 | F29: =IF(A29="","",CEILING(E29*'Simulation retraite'!$B$8/12,0.05)*12*(C29/360)) -> 750 | G29: 18750 | H29: 23271.2 | J29: =IF(J28="","",IF(YEAR('Simulation retraite'!$H$15)-1=YEAR(J28),'Simulation retraite'!$H$15,IF(YEAR('Simulation retraite'!$H$15)-1<YEAR(J28),"",(EDATE(J28,12))))) -> 2046-12-31 | K29: =IF(J29="","",YEAR(J29)-YEAR('Simulation retraite'!$B$6)) -> 61 | L29: 360 | M29: =IF(J29="","",CEILING(Q28*'Simulation retraite'!$F$28*L29/360,0.05)) ->  | N29: 0.01 | O29: =IF(J29="","",CEILING(N29*'Simulation retraite'!$B$8/12,0.05)*12*(L29/360)) -> 750
A30: =IF(A29="","",IF(YEAR('Simulation retraite'!$H$15)-1=YEAR(A29),'Simulation retraite'!$H$15,IF(YEAR('Simulation retraite'!$H$15)-1<YEAR(A29),"",(EDATE(A29,12))))) -> 2047-12-31 | B30: =IF(A30="","",YEAR(A30)-YEAR('Simulation retraite'!$B$6)) -> 62 | C30: 360 | D30: =IF(A30="","",CEILING(H29*'Simulation retraite'!$F$27*C30/360,0.05)) -> 407.25 | E30: 0.01 | F30: =IF(A30="","",CEILING(E30*'Simulation retraite'!$B$8/12,0.05)*12*(C30/360)) -> 750 | G30: 19500 | H30: 24428.45 | J30: =IF(J29="","",IF(YEAR('Simulation retraite'!$H$15)-1=YEAR(J29),'Simulation retraite'!$H$15,IF(YEAR('Simulation retraite'!$H$15)-1<YEAR(J29),"",(EDATE(J29,12))))) -> 2047-12-31 | K30: =IF(J30="","",YEAR(J30)-YEAR('Simulation retraite'!$B$6)) -> 62 | L30: 360 | M30: =IF(J30="","",CEILING(Q29*'Simulation retraite'!$F$28*L30/360,0.05)) ->  | N30: 0.01 | O30: =IF(J30="","",CEILING(N30*'Simulation retraite'!$B$8/12,0.05)*12*(L30/360)) -> 750
A31: =IF(A30="","",IF(YEAR('Simulation retraite'!$H$15)-1=YEAR(A30),'Simulation retraite'!$H$15,IF(YEAR('Simulation retraite'!$H$15)-1<YEAR(A30),"",(EDATE(A30,12))))) -> 2048-12-31 | B31: =IF(A31="","",YEAR(A31)-YEAR('Simulation retraite'!$B$6)) -> 63 | C31: 360 | D31: =IF(A31="","",CEILING(H30*'Simulation retraite'!$F$27*C31/360,0.05)) -> 427.5 | E31: 0.01 | F31: =IF(A31="","",CEILING(E31*'Simulation retraite'!$B$8/12,0.05)*12*(C31/360)) -> 750 | G31: 20250 | H31: 25605.95 | J31: =IF(J30="","",IF(YEAR('Simulation retraite'!$H$15)-1=YEAR(J30),'Simulation retraite'!$H$15,IF(YEAR('Simulation retraite'!$H$15)-1<YEAR(J30),"",(EDATE(J30,12))))) -> 2048-12-31 | K31: =IF(J31="","",YEAR(J31)-YEAR('Simulation retraite'!$B$6)) -> 63 | L31: 360 | M31: =IF(J31="","",CEILING(Q30*'Simulation retraite'!$F$28*L31/360,0.05)) ->  | N31: 0.01 | O31: =IF(J31="","",CEILING(N31*'Simulation retraite'!$B$8/12,0.05)*12*(L31/360)) -> 750
A32: =IF(A31="","",IF(YEAR('Simulation retraite'!$H$15)-1=YEAR(A31),'Simulation retraite'!$H$15,IF(YEAR('Simulation retraite'!$H$15)-1<YEAR(A31),"",(EDATE(A31,12))))) -> 2049-08-01 | B32: =IF(A32="","",YEAR(A32)-YEAR('Simulation retraite'!$B$6)) -> 64 | C32: 210 | D32: =IF(A32="","",CEILING(H31*'Simulation retraite'!$F$27*C32/360,0.05)) -> 261.4 | E32: 0.01 | F32: =IF(A32="","",CEILING(E32*'Simulation retraite'!$B$8/12,0.05)*12*(C32/360)) -> 437.5 | G32: 20687.5 | H32: 26304.85 | J32: =IF(J31="","",IF(YEAR('Simulation retraite'!$H$15)-1=YEAR(J31),'Simulation retraite'!$H$15,IF(YEAR('Simulation retraite'!$H$15)-1<YEAR(J31),"",(EDATE(J31,12))))) -> 2049-08-01 | K32: =IF(J32="","",YEAR(J32)-YEAR('Simulation retraite'!$B$6)) -> 64 | L32: 210 | M32: =IF(J32="","",CEILING(Q31*'Simulation retraite'!$F$28*L32/360,0.05)) ->  | N32: 0.01 | O32: =IF(J32="","",CEILING(N32*'Simulation retraite'!$B$8/12,0.05)*12*(L32/360)) -> 437.5
A33: =IF(A32="","",IF(YEAR('Simulation retraite'!$H$15)-1=YEAR(A32),'Simulation retraite'!$H$15,IF(YEAR('Simulation retraite'!$H$15)-1<YEAR(A32),"",(EDATE(A32,12))))) ->  | B33: =IF(A33="","",YEAR(A33)-YEAR('Simulation retraite'!$B$6)) ->  | D33: =IF(A33="","",CEILING(H32*'Simulation retraite'!$F$27*C33/360,0.05)) ->  | F33: =IF(A33="","",CEILING(E33*'Simulation retraite'!$B$8/12,0.05)*12*(C33/360)) ->  | J33: =IF(J32="","",IF(YEAR('Simulation retraite'!$H$15)-1=YEAR(J32),'Simulation retraite'!$H$15,IF(YEAR('Simulation retraite'!$H$15)-1<YEAR(J32),"",(EDATE(J32,12))))) ->  | K33: =IF(J33="","",YEAR(J33)-YEAR('Simulation retraite'!$B$6)) ->  | M33: =IF(J33="","",CEILING(Q32*'Simulation retraite'!$F$28*L33/360,0.05)) ->  | O33: =IF(J33="","",CEILING(N33*'Simulation retraite'!$B$8/12,0.05)*12*(L33/360)) -> 
A34: =IF(A33="","",IF(YEAR('Simulation retraite'!$H$15)-1=YEAR(A33),'Simulation retraite'!$H$15,IF(YEAR('Simulation retraite'!$H$15)-1<YEAR(A33),"",(EDATE(A33,12))))) ->  | B34: =IF(A34="","",YEAR(A34)-YEAR('Simulation retraite'!$B$6)) ->  | C34: =IF(A34="","",IF(DAY(A34)=1,DAYS360(A33,A34)-1,DAYS360(A33,A34))) ->  | D34: =IF(A34="","",CEILING(H33*'Simulation retraite'!$F$27*C34/360,0.05)) ->  | F34: =IF(A34="","",CEILING(E34*'Simulation retraite'!$B$8/12,0.05)*12*(C34/360)) ->  | J34: =IF(J33="","",IF(YEAR('Simulation retraite'!$H$15)-1=YEAR(J33),'Simulation retraite'!$H$15,IF(YEAR('Simulation retraite'!$H$15)-1<YEAR(J33),"",(EDATE(J33,12))))) ->  | K34: =IF(J34="","",YEAR(J34)-YEAR('Simulation retraite'!$B$6)) ->  | L34: =IF(J34="","",IF(DAY(J34)=1,DAYS360(J33,J34)-1,DAYS360(J33,J34))) ->  | M34: =IF(J34="","",CEILING(Q33*'Simulation retraite'!$F$28*L34/360,0.05)) ->  | O34: =IF(J34="","",CEILING(N34*'Simulation retraite'!$B$8/12,0.05)*12*(L34/360)) ->  | P34: =IF(J34="","",CEILING(P33+O34,0.05)) ->  | Q34: =IF(J34="","",CEILING(Q33+M34+O34,0.05)) -> 
A35: =IF(A34="","",IF(YEAR('Simulation retraite'!$H$15)-1=YEAR(A34),'Simulation retraite'!$H$15,IF(YEAR('Simulation retraite'!$H$15)-1<YEAR(A34),"",(EDATE(A34,12))))) ->  | B35: =IF(A35="","",YEAR(A35)-YEAR('Simulation retraite'!$B$6)) ->  | D35: =IF(A35="","",CEILING(H34*'Simulation retraite'!$F$27*C35/360,0.05)) ->  | F35: =IF(A35="","",CEILING(E35*'Simulation retraite'!$B$8/12,0.05)*12*(C35/360)) ->  | J35: =IF(J34="","",IF(YEAR('Simulation retraite'!$H$15)-1=YEAR(J34),'Simulation retraite'!$H$15,IF(YEAR('Simulation retraite'!$H$15)-1<YEAR(J34),"",(EDATE(J34,12))))) ->  | K35: =IF(J35="","",YEAR(J35)-YEAR('Simulation retraite'!$B$6)) ->  | M35: =IF(J35="","",CEILING(Q34*'Simulation retraite'!$F$28*L35/360,0.05)) ->  | O35: =IF(J35="","",CEILING(N35*'Simulation retraite'!$B$8/12,0.05)*12*(L35/360)) -> 
A36: =IF(A35="","",IF(YEAR('Simulation retraite'!$H$15)-1=YEAR(A35),'Simulation retraite'!$H$15,IF(YEAR('Simulation retraite'!$H$15)-1<YEAR(A35),"",(EDATE(A35,12))))) ->  | B36: =IF(A36="","",YEAR(A36)-YEAR('Simulation retraite'!$B$6)) ->  | D36: =IF(A36="","",CEILING(H35*'Simulation retraite'!$F$27*C36/360,0.05)) ->  | F36: =IF(A36="","",CEILING(E36*'Simulation retraite'!$B$8/12,0.05)*12*(C36/360)) ->  | J36: =IF(J35="","",IF(YEAR('Simulation retraite'!$H$15)-1=YEAR(J35),'Simulation retraite'!$H$15,IF(YEAR('Simulation retraite'!$H$15)-1<YEAR(J35),"",(EDATE(J35,12))))) ->  | K36: =IF(J36="","",YEAR(J36)-YEAR('Simulation retraite'!$B$6)) ->  | M36: =IF(J36="","",CEILING(Q35*'Simulation retraite'!$F$28*L36/360,0.05)) ->  | O36: =IF(J36="","",CEILING(N36*'Simulation retraite'!$B$8/12,0.05)*12*(L36/360)) -> 
A37: =IF(A36="","",IF(YEAR('Simulation retraite'!$H$15)-1=YEAR(A36),'Simulation retraite'!$H$15,IF(YEAR('Simulation retraite'!$H$15)-1<YEAR(A36),"",(EDATE(A36,12))))) ->  | B37: =IF(A37="","",YEAR(A37)-YEAR('Simulation retraite'!$B$6)) ->  | D37: =IF(A37="","",CEILING(H36*'Simulation retraite'!$F$27*C37/360,0.05)) ->  | F37: =IF(A37="","",CEILING(E37*'Simulation retraite'!$B$8/12,0.05)*12*(C37/360)) ->  | G37: =IF(A37="","",CEILING(G36+F37,0.05)) ->  | H37: =IF(A37="","",CEILING(H36+D37+F37,0.05)) ->  | J37: =IF(J36="","",IF(YEAR('Simulation retraite'!$H$15)-1=YEAR(J36),'Simulation retraite'!$H$15,IF(YEAR('Simulation retraite'!$H$15)-1<YEAR(J36),"",(EDATE(J36,12))))) ->  | K37: =IF(J37="","",YEAR(J37)-YEAR('Simulation retraite'!$B$6)) ->  | M37: =IF(J37="","",CEILING(Q36*'Simulation retraite'!$F$28*L37/360,0.05)) ->  | O37: =IF(J37="","",CEILING(N37*'Simulation retraite'!$B$8/12,0.05)*12*(L37/360)) -> 
A38: =IF(A37="","",IF(YEAR('Simulation retraite'!$H$15)-1=YEAR(A37),'Simulation retraite'!$H$15,IF(YEAR('Simulation retraite'!$H$15)-1<YEAR(A37),"",(EDATE(A37,12))))) ->  | B38: =IF(A38="","",YEAR(A38)-YEAR('Simulation retraite'!$B$6)) ->  | D38: =IF(A38="","",CEILING(H37*'Simulation retraite'!$F$27*C38/360,0.05)) ->  | F38: =IF(A38="","",CEILING(E38*'Simulation retraite'!$B$8/12,0.05)*12*(C38/360)) ->  | J38: =IF(J37="","",IF(YEAR('Simulation retraite'!$H$15)-1=YEAR(J37),'Simulation retraite'!$H$15,IF(YEAR('Simulation retraite'!$H$15)-1<YEAR(J37),"",(EDATE(J37,12))))) ->  | K38: =IF(J38="","",YEAR(J38)-YEAR('Simulation retraite'!$B$6)) ->  | M38: =IF(J38="","",CEILING(Q37*'Simulation retraite'!$F$28*L38/360,0.05)) ->  | O38: =IF(J38="","",CEILING(N38*'Simulation retraite'!$B$8/12,0.05)*12*(L38/360)) -> 
A39: =IF(A38="","",IF(YEAR('Simulation retraite'!$H$15)-1=YEAR(A38),'Simulation retraite'!$H$15,IF(YEAR('Simulation retraite'!$H$15)-1<YEAR(A38),"",(EDATE(A38,12))))) ->  | B39: =IF(A39="","",YEAR(A39)-YEAR('Simulation retraite'!$B$6)) ->  | D39: =IF(A39="","",CEILING(H38*'Simulation retraite'!$F$27*C39/360,0.05)) ->  | F39: =IF(A39="","",CEILING(E39*'Simulation retraite'!$B$8/12,0.05)*12*(C39/360)) ->  | J39: =IF(J38="","",IF(YEAR('Simulation retraite'!$H$15)-1=YEAR(J38),'Simulation retraite'!$H$15,IF(YEAR('Simulation retraite'!$H$15)-1<YEAR(J38),"",(EDATE(J38,12))))) ->  | K39: =IF(J39="","",YEAR(J39)-YEAR('Simulation retraite'!$B$6)) ->  | M39: =IF(J39="","",CEILING(Q38*'Simulation retraite'!$F$28*L39/360,0.05)) ->  | O39: =IF(J39="","",CEILING(N39*'Simulation retraite'!$B$8/12,0.05)*12*(L39/360)) -> 
A40: =IF(A39="","",IF(YEAR('Simulation retraite'!$H$15)-1=YEAR(A39),'Simulation retraite'!$H$15,IF(YEAR('Simulation retraite'!$H$15)-1<YEAR(A39),"",(EDATE(A39,12))))) ->  | B40: =IF(A40="","",YEAR(A40)-YEAR('Simulation retraite'!$B$6)) ->  | D40: =IF(A40="","",CEILING(H39*'Simulation retraite'!$F$27*C40/360,0.05)) ->  | F40: =IF(A40="","",CEILING(E40*'Simulation retraite'!$B$8/12,0.05)*12*(C40/360)) ->  | J40: =IF(J39="","",IF(YEAR('Simulation retraite'!$H$15)-1=YEAR(J39),'Simulation retraite'!$H$15,IF(YEAR('Simulation retraite'!$H$15)-1<YEAR(J39),"",(EDATE(J39,12))))) ->  | K40: =IF(J40="","",YEAR(J40)-YEAR('Simulation retraite'!$B$6)) ->  | M40: =IF(J40="","",CEILING(Q39*'Simulation retraite'!$F$28*L40/360,0.05)) ->  | O40: =IF(J40="","",CEILING(N40*'Simulation retraite'!$B$8/12,0.05)*12*(L40/360)) -> 
A41: =IF(A40="","",IF(YEAR('Simulation retraite'!$H$15)-1=YEAR(A40),'Simulation retraite'!$H$15,IF(YEAR('Simulation retraite'!$H$15)-1<YEAR(A40),"",(EDATE(A40,12))))) ->  | B41: =IF(A41="","",YEAR(A41)-YEAR('Simulation retraite'!$B$6)) ->  | D41: =IF(A41="","",CEILING(H40*'Simulation retraite'!$F$27*C41/360,0.05)) ->  | F41: =IF(A41="","",CEILING(E41*'Simulation retraite'!$B$8/12,0.05)*12*(C41/360)) ->  | J41: =IF(J40="","",IF(YEAR('Simulation retraite'!$H$15)-1=YEAR(J40),'Simulation retraite'!$H$15,IF(YEAR('Simulation retraite'!$H$15)-1<YEAR(J40),"",(EDATE(J40,12))))) ->  | K41: =IF(J41="","",YEAR(J41)-YEAR('Simulation retraite'!$B$6)) ->  | M41: =IF(J41="","",CEILING(Q40*'Simulation retraite'!$F$28*L41/360,0.05)) ->  | O41: =IF(J41="","",CEILING(N41*'Simulation retraite'!$B$8/12,0.05)*12*(L41/360)) -> 
A42: =IF(A41="","",IF(YEAR('Simulation retraite'!$H$15)-1=YEAR(A41),'Simulation retraite'!$H$15,IF(YEAR('Simulation retraite'!$H$15)-1<YEAR(A41),"",(EDATE(A41,12))))) ->  | B42: =IF(A42="","",YEAR(A42)-YEAR('Simulation retraite'!$B$6)) ->  | D42: =IF(A42="","",CEILING(H41*'Simulation retraite'!$F$27*C42/360,0.05)) ->  | F42: =IF(A42="","",CEILING(E42*'Simulation retraite'!$B$8/12,0.05)*12*(C42/360)) ->  | J42: =IF(J41="","",IF(YEAR('Simulation retraite'!$H$15)-1=YEAR(J41),'Simulation retraite'!$H$15,IF(YEAR('Simulation retraite'!$H$15)-1<YEAR(J41),"",(EDATE(J41,12))))) ->  | K42: =IF(J42="","",YEAR(J42)-YEAR('Simulation retraite'!$B$6)) ->  | M42: =IF(J42="","",CEILING(Q41*'Simulation retraite'!$F$28*L42/360,0.05)) ->  | O42: =IF(J42="","",CEILING(N42*'Simulation retraite'!$B$8/12,0.05)*12*(L42/360)) -> 
A43: =IF(A42="","",IF(YEAR('Simulation retraite'!$H$15)-1=YEAR(A42),'Simulation retraite'!$H$15,IF(YEAR('Simulation retraite'!$H$15)-1<YEAR(A42),"",(EDATE(A42,12))))) ->  | B43: =IF(A43="","",YEAR(A43)-YEAR('Simulation retraite'!$B$6)) ->  | D43: =IF(A43="","",CEILING(H42*'Simulation retraite'!$F$27*C43/360,0.05)) ->  | F43: =IF(A43="","",CEILING(E43*'Simulation retraite'!$B$8/12,0.05)*12*(C43/360)) ->  | J43: =IF(J42="","",IF(YEAR('Simulation retraite'!$H$15)-1=YEAR(J42),'Simulation retraite'!$H$15,IF(YEAR('Simulation retraite'!$H$15)-1<YEAR(J42),"",(EDATE(J42,12))))) ->  | K43: =IF(J43="","",YEAR(J43)-YEAR('Simulation retraite'!$B$6)) ->  | M43: =IF(J43="","",CEILING(Q42*'Simulation retraite'!$F$28*L43/360,0.05)) ->  | O43: =IF(J43="","",CEILING(N43*'Simulation retraite'!$B$8/12,0.05)*12*(L43/360)) -> 
A44: =IF(A43="","",IF(YEAR('Simulation retraite'!$H$15)-1=YEAR(A43),'Simulation retraite'!$H$15,IF(YEAR('Simulation retraite'!$H$15)-1<YEAR(A43),"",(EDATE(A43,12))))) ->  | B44: =IF(A44="","",YEAR(A44)-YEAR('Simulation retraite'!$B$6)) ->  | D44: =IF(A44="","",CEILING(H43*'Simulation retraite'!$F$27*C44/360,0.05)) ->  | F44: =IF(A44="","",CEILING(E44*'Simulation retraite'!$B$8/12,0.05)*12*(C44/360)) ->  | J44: =IF(J43="","",IF(YEAR('Simulation retraite'!$H$15)-1=YEAR(J43),'Simulation retraite'!$H$15,IF(YEAR('Simulation retraite'!$H$15)-1<YEAR(J43),"",(EDATE(J43,12))))) ->  | K44: =IF(J44="","",YEAR(J44)-YEAR('Simulation retraite'!$B$6)) ->  | M44: =IF(J44="","",CEILING(Q43*'Simulation retraite'!$F$28*L44/360,0.05)) ->  | O44: =IF(J44="","",CEILING(N44*'Simulation retraite'!$B$8/12,0.05)*12*(L44/360)) -> 
A45: =IF(A44="","",IF(YEAR('Simulation retraite'!$H$15)-1=YEAR(A44),'Simulation retraite'!$H$15,IF(YEAR('Simulation retraite'!$H$15)-1<YEAR(A44),"",(EDATE(A44,12))))) ->  | B45: =IF(A45="","",YEAR(A45)-YEAR('Simulation retraite'!$B$6)) ->  | D45: =IF(A45="","",CEILING(H44*'Simulation retraite'!$F$27*C45/360,0.05)) ->  | F45: =IF(A45="","",CEILING(E45*'Simulation retraite'!$B$8/12,0.05)*12*(C45/360)) ->  | J45: =IF(J44="","",IF(YEAR('Simulation retraite'!$H$15)-1=YEAR(J44),'Simulation retraite'!$H$15,IF(YEAR('Simulation retraite'!$H$15)-1<YEAR(J44),"",(EDATE(J44,12))))) ->  | K45: =IF(J45="","",YEAR(J45)-YEAR('Simulation retraite'!$B$6)) ->  | M45: =IF(J45="","",CEILING(Q44*'Simulation retraite'!$F$28*L45/360,0.05)) ->  | O45: =IF(J45="","",CEILING(N45*'Simulation retraite'!$B$8/12,0.05)*12*(L45/360)) -> 
A46: =IF(A45="","",IF(YEAR('Simulation retraite'!$H$15)-1=YEAR(A45),'Simulation retraite'!$H$15,IF(YEAR('Simulation retraite'!$H$15)-1<YEAR(A45),"",(EDATE(A45,12))))) ->  | B46: =IF(A46="","",YEAR(A46)-YEAR('Simulation retraite'!$B$6)) ->  | C46: =IF(A46="","",IF(DAY(A46)=1,DAYS360(A45,A46)-1,DAYS360(A45,A46))) ->  | D46: =IF(A46="","",CEILING(H45*'Simulation retraite'!$F$27*C46/360,0.05)) ->  | F46: =IF(A46="","",CEILING(E46*'Simulation retraite'!$B$8/12,0.05)*12*(C46/360)) ->  | J46: =IF(J45="","",IF(YEAR('Simulation retraite'!$H$15)-1=YEAR(J45),'Simulation retraite'!$H$15,IF(YEAR('Simulation retraite'!$H$15)-1<YEAR(J45),"",(EDATE(J45,12))))) ->  | K46: =IF(J46="","",YEAR(J46)-YEAR('Simulation retraite'!$B$6)) ->  | L46: =IF(J46="","",IF(DAY(J46)=1,DAYS360(J45,J46)-1,DAYS360(J45,J46))) ->  | M46: =IF(J46="","",CEILING(Q45*'Simulation retraite'!$F$28*L46/360,0.05)) ->  | O46: =IF(J46="","",CEILING(N46*'Simulation retraite'!$B$8/12,0.05)*12*(L46/360)) ->  | P46: =IF(J46="","",CEILING(P45+O46,0.05)) ->  | Q46: =IF(J46="","",CEILING(Q45+M46+O46,0.05)) -> 
A47: =IF(A46="","",IF(YEAR('Simulation retraite'!$H$15)-1=YEAR(A46),'Simulation retraite'!$H$15,IF(YEAR('Simulation retraite'!$H$15)-1<YEAR(A46),"",(EDATE(A46,12))))) ->  | B47: =IF(A47="","",YEAR(A47)-YEAR('Simulation retraite'!$B$6)) ->  | D47: =IF(A47="","",CEILING(H46*'Simulation retraite'!$F$27*C47/360,0.05)) ->  | F47: =IF(A47="","",CEILING(E47*'Simulation retraite'!$B$8/12,0.05)*12*(C47/360)) ->  | J47: =IF(J46="","",IF(YEAR('Simulation retraite'!$H$15)-1=YEAR(J46),'Simulation retraite'!$H$15,IF(YEAR('Simulation retraite'!$H$15)-1<YEAR(J46),"",(EDATE(J46,12))))) ->  | K47: =IF(J47="","",YEAR(J47)-YEAR('Simulation retraite'!$B$6)) ->  | M47: =IF(J47="","",CEILING(Q46*'Simulation retraite'!$F$28*L47/360,0.05)) ->  | O47: =IF(J47="","",CEILING(N47*'Simulation retraite'!$B$8/12,0.05)*12*(L47/360)) -> 
A48: =IF(A47="","",IF(YEAR('Simulation retraite'!$H$15)-1=YEAR(A47),'Simulation retraite'!$H$15,IF(YEAR('Simulation retraite'!$H$15)-1<YEAR(A47),"",(EDATE(A47,12))))) ->  | B48: =IF(A48="","",YEAR(A48)-YEAR('Simulation retraite'!$B$6)) ->  | D48: =IF(A48="","",CEILING(H47*'Simulation retraite'!$F$27*C48/360,0.05)) ->  | F48: =IF(A48="","",CEILING(E48*'Simulation retraite'!$B$8/12,0.05)*12*(C48/360)) ->  | J48: =IF(J47="","",IF(YEAR('Simulation retraite'!$H$15)-1=YEAR(J47),'Simulation retraite'!$H$15,IF(YEAR('Simulation retraite'!$H$15)-1<YEAR(J47),"",(EDATE(J47,12))))) ->  | K48: =IF(J48="","",YEAR(J48)-YEAR('Simulation retraite'!$B$6)) ->  | M48: =IF(J48="","",CEILING(Q47*'Simulation retraite'!$F$28*L48/360,0.05)) ->  | O48: =IF(J48="","",CEILING(N48*'Simulation retraite'!$B$8/12,0.05)*12*(L48/360)) -> 
A49: =IF(A48="","",IF(YEAR('Simulation retraite'!$H$15)-1=YEAR(A48),'Simulation retraite'!$H$15,IF(YEAR('Simulation retraite'!$H$15)-1<YEAR(A48),"",(EDATE(A48,12))))) ->  | B49: =IF(A49="","",YEAR(A49)-YEAR('Simulation retraite'!$B$6)) ->  | D49: =IF(A49="","",CEILING(H48*'Simulation retraite'!$F$27*C49/360,0.05)) ->  | F49: =IF(A49="","",CEILING(E49*'Simulation retraite'!$B$8/12,0.05)*12*(C49/360)) ->  | J49: =IF(J48="","",IF(YEAR('Simulation retraite'!$H$15)-1=YEAR(J48),'Simulation retraite'!$H$15,IF(YEAR('Simulation retraite'!$H$15)-1<YEAR(J48),"",(EDATE(J48,12))))) ->  | K49: =IF(J49="","",YEAR(J49)-YEAR('Simulation retraite'!$B$6)) ->  | M49: =IF(J49="","",CEILING(Q48*'Simulation retraite'!$F$28*L49/360,0.05)) ->  | O49: =IF(J49="","",CEILING(N49*'Simulation retraite'!$B$8/12,0.05)*12*(L49/360)) -> 
A50: =IF(A49="","",IF(YEAR('Simulation retraite'!$H$15)-1=YEAR(A49),'Simulation retraite'!$H$15,IF(YEAR('Simulation retraite'!$H$15)-1<YEAR(A49),"",(EDATE(A49,12))))) ->  | B50: =IF(A50="","",YEAR(A50)-YEAR('Simulation retraite'!$B$6)) ->  | D50: =IF(A50="","",CEILING(H49*'Simulation retraite'!$F$27*C50/360,0.05)) ->  | F50: =IF(A50="","",CEILING(E50*'Simulation retraite'!$B$8/12,0.05)*12*(C50/360)) ->  | J50: =IF(J49="","",IF(YEAR('Simulation retraite'!$H$15)-1=YEAR(J49),'Simulation retraite'!$H$15,IF(YEAR('Simulation retraite'!$H$15)-1<YEAR(J49),"",(EDATE(J49,12))))) ->  | K50: =IF(J50="","",YEAR(J50)-YEAR('Simulation retraite'!$B$6)) ->  | M50: =IF(J50="","",CEILING(Q49*'Simulation retraite'!$F$28*L50/360,0.05)) ->  | O50: =IF(J50="","",CEILING(N50*'Simulation retraite'!$B$8/12,0.05)*12*(L50/360)) -> 
A51: =IF(A50="","",IF(YEAR('Simulation retraite'!$H$15)-1=YEAR(A50),'Simulation retraite'!$H$15,IF(YEAR('Simulation retraite'!$H$15)-1<YEAR(A50),"",(EDATE(A50,12))))) ->  | B51: =IF(A51="","",YEAR(A51)-YEAR('Simulation retraite'!$B$6)) ->  | D51: =IF(A51="","",CEILING(H50*'Simulation retraite'!$F$27*C51/360,0.05)) ->  | F51: =IF(A51="","",CEILING(E51*'Simulation retraite'!$B$8/12,0.05)*12*(C51/360)) ->  | J51: =IF(J50="","",IF(YEAR('Simulation retraite'!$H$15)-1=YEAR(J50),'Simulation retraite'!$H$15,IF(YEAR('Simulation retraite'!$H$15)-1<YEAR(J50),"",(EDATE(J50,12))))) ->  | K51: =IF(J51="","",YEAR(J51)-YEAR('Simulation retraite'!$B$6)) ->  | M51: =IF(J51="","",CEILING(Q50*'Simulation retraite'!$F$28*L51/360,0.05)) ->  | O51: =IF(J51="","",CEILING(N51*'Simulation retraite'!$B$8/12,0.05)*12*(L51/360)) -> 
A52: =IF(A51="","",IF(YEAR('Simulation retraite'!$H$15)-1=YEAR(A51),'Simulation retraite'!$H$15,IF(YEAR('Simulation retraite'!$H$15)-1<YEAR(A51),"",(EDATE(A51,12))))) ->  | B52: =IF(A52="","",YEAR(A52)-YEAR('Simulation retraite'!$B$6)) ->  | D52: =IF(A52="","",CEILING(H51*'Simulation retraite'!$F$27*C52/360,0.05)) ->  | F52: =IF(A52="","",CEILING(E52*'Simulation retraite'!$B$8/12,0.05)*12*(C52/360)) ->  | J52: =IF(J51="","",IF(YEAR('Simulation retraite'!$H$15)-1=YEAR(J51),'Simulation retraite'!$H$15,IF(YEAR('Simulation retraite'!$H$15)-1<YEAR(J51),"",(EDATE(J51,12))))) ->  | K52: =IF(J52="","",YEAR(J52)-YEAR('Simulation retraite'!$B$6)) ->  | L52: =IF(J52="","",IF(DAY(J52)=1,DAYS360(J51,J52)-1,DAYS360(J51,J52))) ->  | M52: =IF(J52="","",CEILING(Q51*'Simulation retraite'!$F$28*L52/360,0.05)) ->  | O52: =IF(J52="","",CEILING(N52*'Simulation retraite'!$B$8/12,0.05)*12*(L52/360)) -> 
A53: =IF(A52="","",IF(YEAR('Simulation retraite'!$H$15)-1=YEAR(A52),'Simulation retraite'!$H$15,IF(YEAR('Simulation retraite'!$H$15)-1<YEAR(A52),"",(EDATE(A52,12))))) ->  | B53: =IF(A53="","",YEAR(A53)-YEAR('Simulation retraite'!$B$6)) ->  | D53: =IF(A53="","",CEILING(H52*'Simulation retraite'!$F$27*C53/360,0.05)) ->  | F53: =IF(A53="","",CEILING(E53*'Simulation retraite'!$B$8/12,0.05)*12*(C53/360)) ->  | J53: =IF(J52="","",IF(YEAR('Simulation retraite'!$H$15)-1=YEAR(J52),'Simulation retraite'!$H$15,IF(YEAR('Simulation retraite'!$H$15)-1<YEAR(J52),"",(EDATE(J52,12))))) ->  | K53: =IF(J53="","",YEAR(J53)-YEAR('Simulation retraite'!$B$6)) ->  | M53: =IF(J53="","",CEILING(Q52*'Simulation retraite'!$F$28*L53/360,0.05)) ->  | O53: =IF(J53="","",CEILING(N53*'Simulation retraite'!$B$8/12,0.05)*12*(L53/360)) -> 
A54: =IF(A53="","",IF(YEAR('Simulation retraite'!$H$15)-1=YEAR(A53),'Simulation retraite'!$H$15,IF(YEAR('Simulation retraite'!$H$15)-1<YEAR(A53),"",(EDATE(A53,12))))) ->  | B54: =IF(A54="","",YEAR(A54)-YEAR('Simulation retraite'!$B$6)) ->  | D54: =IF(A54="","",CEILING(H53*'Simulation retraite'!$F$27*C54/360,0.05)) ->  | F54: =IF(A54="","",CEILING(E54*'Simulation retraite'!$B$8/12,0.05)*12*(C54/360)) ->  | J54: =IF(J53="","",IF(YEAR('Simulation retraite'!$H$15)-1=YEAR(J53),'Simulation retraite'!$H$15,IF(YEAR('Simulation retraite'!$H$15)-1<YEAR(J53),"",(EDATE(J53,12))))) ->  | K54: =IF(J54="","",YEAR(J54)-YEAR('Simulation retraite'!$B$6)) ->  | L54: =IF(J54="","",IF(DAY(J54)=1,DAYS360(J53,J54)-1,DAYS360(J53,J54))) ->  | M54: =IF(J54="","",CEILING(Q53*'Simulation retraite'!$F$28*L54/360,0.05)) ->  | O54: =IF(J54="","",CEILING(N54*'Simulation retraite'!$B$8/12,0.05)*12*(L54/360)) -> 

Sheet Para_simu (hidden)
A1: Age | B1: Taux de bonifications Base | C1: Taux de bonifications PPP | D1: Taux de bonifications Base 2024 | E1: Taux de bonifications PPP 2024 | F1: Taux de bonifications Base - Epargne + | G1: Taux de bonifications PPP - Epargne + | H1: Taux de bonifications Base 2024 - Epargne + | I1: Taux de bonifications PPP 2024 - Epargne + | J1: Age de retraite | K1: Taux de conversion | L1: Sexe | M1: Collectif | N1: Epargne+ | O1: Projection | P1: Age | Q1: Cotisation totale Base 2022 | R1: Cotisation totale PPP 2022 | S1: Cotisation totale Base dès 2023 | T1: Cotisation totale PPP dès 2023 | U1: Cotisation totale Base - Epargne + dès 2022 | V1: Cotisation totale PPP - Epargne + dès 2022 | W1: Cotisation totale Base - Epargne + dès 2023 | X1: Cotisation totale PPP - Epargne + dès 2023 | Y1: Choix assurance | Z1: 0.0228
A2: 17 | B2: 0 | C2: 0 | D2: 0 | E2: 0 | F2: 0 | G2: 0 | H2: 0 | I2: 0 | J2: 58 | K2: 0.0462 | L2: Masculin | M2: Base | N2: non | O2: ="Prestations selon l'hypothèse d'intérêt de "&TEXT('Simulation retraite'!$F$27,"0.0%") -> Prestations selon l'hypothèse d'intérêt de 1.8% | P2: 18 | Q2: 0.0076 | R2: 0.0076 | S2: 0.0076 | T2: 0.0076 | U2: 0.0076 | V2: 0.0076 | W2: 0.0076 | X2: 0.0076 | Y2: risques
A3: 18 | B3: 0 | C3: 0 | D3: 0 | E3: 0 | F3: 0 | G3: 0 | H3: 0 | I3: 0 | J3: 59 | K3: 0.0473 | L3: Féminin | M3: PPP | N3: oui | O3: ="Prestations selon l'hypothèse d'intérêt de "&TEXT('Simulation retraite'!$F$27,"0.0%") -> Prestations selon l'hypothèse d'intérêt de 1.8% | P3: 19 | Q3: 0.0076 | R3: 0.0076 | S3: 0.0076 | T3: 0.0076 | U3: 0.0076 | V3: 0.0076 | W3: 0.0076 | X3: 0.0076 | Y3: risques et épargne
A4: 19 | B4: 0 | C4: 0 | D4: 0 | E4: 0 | F4: 0 | G4: 0 | H4: 0 | I4: 0 | J4: 60 | K4: 0.0485 | O4: ="Prestations selon l'hypothèse d'intérêt de "&TEXT('Simulation retraite'!$F$28,"0.0%") -> Prestations selon l'hypothèse d'intérêt de 1.8% | P4: 20 | Q4: 0.0885 | R4: 0.114 | S4: 0.087 | T4: 0.1125 | U4: 0.0985 | V4: 0.124 | W4: 0.097 | X4: 0.1225
A5: 20 | J5: 61 | K5: 0.0497 | P5: 21 | Q5: 0.0885 | R5: 0.114 | S5: 0.087 | T5: 0.1125 | U5: 0.0985 | V5: 0.124 | W5: 0.097 | X5: 0.1225
A6: 21 | J6: 62 | K6: 0.0511 | P6: 22 | Q6: 0.0885 | R6: 0.114 | S6: 0.087 | T6: 0.1125 | U6: 0.0985 | V6: 0.124 | W6: 0.097 | X6: 0.1225
A7: 22 | J7: 63 | K7: 0.0524 | P7: 23 | Q7: 0.0885 | R7: 0.114 | S7: 0.087 | T7: 0.1125 | U7: 0.0985 | V7: 0.124 | W7: 0.097 | X7: 0.1225
A8: 23 | J8: 64 | K8: 0.0541 | P8: 24 | Q8: 0.0885 | R8: 0.114 | S8: 0.087 | T8: 0.1125 | U8: 0.0985 | V8: 0.124 | W8: 0.097 | X8: 0.1225
A9: 24 | J9: 65 | K9: 0.0555 | P9: 25 | Q9: 0.0885 | R9: 0.114 | S9: 0.087 | T9: 0.1125 | U9: 0.0985 | V9: 0.124 | W9: 0.097 | X9: 0.1225
A10: 25 | J10: 66 | K10: 0.0572 | P10: 26 | Q10: 0.0885 | R10: 0.114 | S10: 0.087 | T10: 0.1125 | U10: 0.0985 | V10: 0.124 | W10: 0.097 | X10: 0.1225
A11: 26 | J11: 67 | K11: 0.059 | P11: 27 | Q11: 0.0885 | R11: 0.114 | S11: 0.087 | T11: 0.1125 | U11: 0.0985 | V11: 0.124 | W11: 0.097 | X11: 0.1225
A12: 27 | J12: 68 | K12: 0.061 | P12: 28 | Q12: 0.0885 | R12: 0.114 | S12: 0.087 | T12: 0.1125 | U12: 0.0985 | V12: 0.124 | W12: 0.097 | X12: 0.1225
A13: 28 | J13: 69 | K13: 0.0631 | P13: 29 | Q13: 0.0885 | R13: 0.114 | S13: 0.087 | T13: 0.1125 | U13: 0.0985 | V13: 0.124 | W13: 0.097 | X13: 0.1225
A14: 29 | J14: 70 | K14: 0.0654 | P14: 30 | Q14: 0.0935 | R14: 0.119 | S14: 0.092 | T14: 0.1175 | U14: 0.1035 | V14: 0.129 | W14: 0.102 | X14: 0.1275
A15: 30 | P15: 31 | Q15: 0.0935 | R15: 0.119 | S15: 0.092 | T15: 0.1175 | U15: 0.1035 | V15: 0.129 | W15: 0.102 | X15: 0.1275
A16: 31 | P16: 32 | Q16: 0.0935 | R16: 0.119 | S16: 0.092 | T16: 0.1175 | U16: 0.1035 | V16: 0.129 | W16: 0.102 | X16: 0.1275
A17: 32 | P17: 33 | Q17: 0.0935 | R17: 0.119 | S17: 0.092 | T17: 0.1175 | U17: 0.1035 | V17: 0.129 | W17: 0.102 | X17: 0.1275
A18: 33 | P18: 34 | Q18: 0.0935 | R18: 0.119 | S18: 0.092 | T18: 0.1175 | U18: 0.1035 | V18: 0.129 | W18: 0.102 | X18: 0.1275
A19: 34 | P19: 35 | Q19: 0.0935 | R19: 0.119 | S19: 0.092 | T19: 0.1175 | U19: 0.1035 | V19: 0.129 | W19: 0.102 | X19: 0.1275
A20: 35 | P20: 36 | Q20: 0.0935 | R20: 0.119 | S20: 0.092 | T20: 0.1175 | U20: 0.1035 | V20: 0.129 | W20: 0.102 | X20: 0.1275
A21: 36 | P21: 37 | Q21: 0.0935 | R21: 0.119 | S21: 0.092 | T21: 0.1175 | U21: 0.1035 | V21: 0.129 | W21: 0.102 | X21: 0.1275
A22: 37 | P22: 38 | Q22: 0.0935 | R22: 0.119 | S22: 0.092 | T22: 0.1175 | U22: 0.1035 | V22: 0.129 | W22: 0.102 | X22: 0.1275
A23: 38 | P23: 39 | Q23: 0.0935 | R23: 0.119 | S23: 0.092 | T23: 0.1175 | U23: 0.1035 | V23: 0.129 | W23: 0.102 | X23: 0.1275
A24: 39 | P24: 40 | Q24: 0.1 | R24: 0.1255 | S24: 0.098 | T24: 0.1235 | U24: 0.11 | V24: 0.1355 | W24: 0.108 | X24: 0.1335
A25: 40 | P25: 41 | Q25: 0.1 | R25: 0.1255 | S25: 0.098 | T25: 0.1235 | U25: 0.11 | V25: 0.1355 | W25: 0.108 | X25: 0.1335
A26: 41 | P26: 42 | Q26: 0.1 | R26: 0.1255 | S26: 0.098 | T26: 0.1235 | U26: 0.11 | V26: 0.1355 | W26: 0.108 | X26: 0.1335
A27: 42 | P27: 43 | Q27: 0.1 | R27: 0.1255 | S27: 0.098 | T27: 0.1235 | U27: 0.11 | V27: 0.1355 | W27: 0.108 | X27: 0.1335
A28: 43 | P28: 44 | Q28: 0.1 | R28: 0.1255 | S28: 0.098 | T28: 0.1235 | U28: 0.11 | V28: 0.1355 | W28: 0.108 | X28: 0.1335
A29: 44 | P29: 45 | Q29: 0.1 | R29: 0.1255 | S29: 0.098 | T29: 0.1235 | U29: 0.11 | V29: 0.1355 | W29: 0.108 | X29: 0.1335
A30: 45 | P30: 46 | Q30: 0.1 | R30: 0.1255 | S30: 0.098 | T30: 0.1235 | U30: 0.11 | V30: 0.1355 | W30: 0.108 | X30: 0.1335
A31: 46 | P31: 47 | Q31: 0.1 | R31: 0.1255 | S31: 0.098 | T31: 0.1235 | U31: 0.11 | V31: 0.1355 | W31: 0.108 | X31: 0.1335
A32: 47 | P32: 48 | Q32: 0.1 | R32: 0.1255 | S32: 0.098 | T32: 0.1235 | U32: 0.11 | V32: 0.1355 | W32: 0.108 | X32: 0.1335
A33: 48 | P33: 49 | Q33: 0.1 | R33: 0.1255 | S33: 0.098 | T33: 0.1235 | U33: 0.11 | V33: 0.1355 | W33: 0.108 | X33: 0.1335
A34: 49 | P34: 50 | Q34: 0.109 | R34: 0.1345 | S34: 0.106 | T34: 0.1315 | U34: 0.119 | V34: 0.1445 | W34: 0.116 | X34: 0.1415
A35: 50 | P35: 51 | Q35: 0.109 | R35: 0.1345 | S35: 0.106 | T35: 0.1315 | U35: 0.119 | V35: 0.1445 | W35: 0.116 | X35: 0.1415
A36: 51 | P36: 52 | Q36: 0.109 | R36: 0.1345 | S36: 0.106 | T36: 0.1315 | U36: 0.119 | V36: 0.1445 | W36: 0.116 | X36: 0.1415
A37: 52 | P37: 53 | Q37: 0.109 | R37: 0.1345 | S37: 0.106 | T37: 0.1315 | U37: 0.119 | V37: 0.1445 | W37: 0.116 | X37: 0.1415
A38: 53 | P38: 54 | Q38: 0.109 | R38: 0.1345 | S38: 0.106 | T38: 0.1315 | U38: 0.119 | V38: 0.1445 | W38: 0.116 | X38: 0.1415
A39: 54 | P39: 55 | Q39: 0.109 | R39: 0.1345 | S39: 0.106 | T39: 0.1315 | U39: 0.119 | V39: 0.1445 | W39: 0.116 | X39: 0.1415
A40: 55 | P40: 56 | Q40: 0.109 | R40: 0.1345 | S40: 0.106 | T40: 0.1315 | U40: 0.119 | V40: 0.1445 | W40: 0.116 | X40: 0.1415
A41: 56 | P41: 57 | Q41: 0.109 | R41: 0.1345 | S41: 0.106 | T41: 0.1315 | U41: 0.119 | V41: 0.1445 | W41: 0.116 | X41: 0.1415
A42: 57 | P42: 58 | Q42: 0.109 | R42: 0.1345 | S42: 0.106 | T42: 0.1315 | U42: 0.119 | V42: 0.1445 | W42: 0.116 | X42: 0.1415
A43: 58 | P43: 59 | Q43: 0.109 | R43: 0.1345 | S43: 0.106 | T43: 0.1315 | U43: 0.119 | V43: 0.1445 | W43: 0.116 | X43: 0.1415
A44: 59 | P44: 60 | Q44: 0.1115 | R44: 0.137 | S44: 0.108 | T44: 0.1335 | U44: 0.1215 | V44: 0.147 | W44: 0.118 | X44: 0.1435
A45: 60 | P45: 61 | Q45: 0.1115 | R45: 0.137 | S45: 0.108 | T45: 0.1335 | U45: 0.1215 | V45: 0.147 | W45: 0.118 | X45: 0.1435
A46: 61 | P46: 62 | Q46: 0.1115 | R46: 0.137 | S46: 0.108 | T46: 0.1335 | U46: 0.1215 | V46: 0.147 | W46: 0.118 | X46: 0.1435
A47: 62 | P47: 63 | Q47: 0.1115 | R47: 0.137 | S47: 0.108 | T47: 0.1335 | U47: 0.1215 | V47: 0.147 | W47: 0.118 | X47: 0.1435
A48: 63 | P48: 64 | Q48: 0.1115 | R48: 0.137 | S48: 0.108 | T48: 0.1335 | U48: 0.1215 | V48: 0.147 | W48: 0.118 | X48: 0.1435
A49: 64 | P49: 65 | Q49: 0.1115 | R49: 0.137 | S49: 0.108 | T49: 0.1335 | U49: 0.1215 | V49: 0.147 | W49: 0.118 | X49: 0.1435
A50: 65 | P50: 66 | Q50: 0.1115 | R50: 0.137 | S50: 0.108 | T50: 0.1335 | U50: 0.1215 | V50: 0.147 | W50: 0.118 | X50: 0.1435
A51: 66 | P51: 67 | Q51: 0.1115 | R51: 0.137 | S51: 0.108 | T51: 0.1335 | U51: 0.1215 | V51: 0.147 | W51: 0.118 | X51: 0.1435
A52: 67 | P52: 68 | Q52: 0.1115 | R52: 0.137 | S52: 0.108 | T52: 0.1335 | U52: 0.1215 | V52: 0.147 | W52: 0.118 | X52: 0.1435
A53: 68 | P53: 69 | Q53: 0.1115 | R53: 0.137 | S53: 0.108 | T53: 0.1335 | U53: 0.1215 | V53: 0.147 | W53: 0.118 | X53: 0.1435
A54: 69 | P54: 70 | Q54: 0.1115 | R54: 0.137 | S54: 0.108 | T54: 0.1335 | U54: 0.1215 | V54: 0.147 | W54: 0.118 | X54: 0.1435
A55: 70
